bitfinex/quotes_ETHUSD_20251111
["timestamp","ask_amount","ask_price","bid_price","bid_amount"]
[1762878793157,4.47295907,3475.7,3475.6,0.001]
[1762878793355,12.26886191,3475.7,3475.6,0.001]
[1762878793891,12.65289554,3475.7,3475.6,0.001]
[1762878794069,12.26886191,3475.7,3475.6,0.001]
[1762878794699,12.95986191,3475.7,3475.6,0.001]
[1762878795891,12.95986191,3475.7,3475.4,0.001]
[1762878795892,4.41652864,3475.5,3475.4,0.001]
[1762878796101,11.33872748,3475.5,3475.4,0.001]
[1762878796271,11.81172748,3475.5,3475.4,0.001]
[1762878800069,12.02772748,3475.5,3475.4,0.001]
[1762878800462,13.26788743,3475.5,3475.4,0.001]
[1762878800664,12.17338343,3475.5,3475.4,0.001]
[1762878800863,10.92852348,3475.5,3475.4,0.001]
[1762878801274,6.91749884,3475.5,3475.4,0.001]
[1762878801487,6.2992,3475.5,3475.4,0.9275]
[1762878801705,7.4329408,3475.5,3475.4,0.9275]
[1762878801992,6.2992,3475.5,3475.4,1.08493]
[1762878802496,7.4329408,3475.5,3475.4,1.08493]
[1762878802666,7.4329408,3475.5,3475.4,0.63113]
[1762878803063,7.4329408,3475.5,3475.4,0.65843]
[1762878803289,10.31022464,3475.5,3475.4,0.001]
[1762878803464,10.92970926,3475.5,3475.4,0.001]
[1762878803664,11.39180926,3475.5,3475.4,0.001]
[1762878803865,8.05242542,3475.5,3475.4,0.001]
[1762878804065,10.92970926,3475.5,3475.4,0.001]
[1762878804385,11.19862019,3475.5,3475.4,0.001]
[1762878806202,8.32133635,3475.5,3475.4,0.492]
[1762878806366,11.19862019,3475.5,3475.4,0.992]
[1762878806567,11.19862019,3475.5,3475.4,0.001]
[1762878807212,8.32133635,3475.5,3475.4,0.492]
[1762878807369,8.32133635,3475.5,3475.4,0.9755]
[1762878807568,6.56811093,3475.5,3475.4,4.53399663]
[1762878807768,6.56811093,3475.5,3475.4,1.65663]
[1762878808114,6.2992,3475.5,3475.4,1.65663]
[1762878808472,6.2992,3475.5,3475.4,4.53399663]
[1762878808803,6.2992,3475.5,3475.4,1.65663]
[1762878809005,6.2992,3475.5,3475.4,4.53399663]
[1762878809509,0.002,3476.0,3475.9,0.5]
[1762878809673,0.002,3476.0,3475.9,2.30541155]
[1762878809872,0.002,3476.0,3475.9,2.78891155]
[1762878810075,0.002,3476.0,3475.9,5.6946338]
[1762878810407,0.002,3476.4,3475.9,5.66586428]
[1762878810652,0.002,3476.4,3476.3,4.04932169]
[1762878811002,0.002,3476.4,3476.3,4.53282169]
[1762878811786,0.002,3476.7,3476.6,3.37637346]
[1762878811987,0.002,3476.7,3476.6,4.55637346]
[1762878812312,0.002,3476.7,3476.6,6.13733969]
[1762878812512,0.002,3476.9,3476.8,2.876208]
[1762878812712,0.002,3476.9,3476.8,3.867208]
[1762878813014,0.002,3476.9,3476.8,4.350708]
[1762878813907,0.002,3477.3,3477.2,2.87587714]
[1762878814111,0.002,3477.3,3477.2,5.13106199]
[1762878814316,0.002,3477.3,3477.2,5.61456199]
[1762878815907,0.002,3477.3,3476.6,1.09746623]
[1762878815908,1.8656408,3477.3,3476.5,0.5]
[1762878816089,0.1892,3477.2,3476.5,0.5]
[1762878816511,2.87617497,3476.9,3476.5,0.5]
[1762878816830,1.6056408,3477.3,3476.5,0.5]
[1762878817111,2.8762761,3476.8,3476.5,0.5]
[1762878817307,2.87632582,3476.7,3476.5,0.5]
[1762878817517,2.87621185,3476.8,3476.5,0.5]
[1762878817802,1.1337408,3477.0,3476.8,0.5]
[1762878818004,3.34770258,3477.3,3476.8,0.691]
[1762878818005,0.002,3477.3,3476.8,0.691]
[1762878818226,0.002,3477.3,3477.2,0.991]
[1762878818418,0.002,3477.3,3477.2,0.5]
[1762878818988,0.002,3477.3,3477.2,4.35037714]
[1762878819328,0.002,3477.3,3477.2,1.182]
[1762878819525,0.002,3477.3,3477.2,2.1655]
[1762878820031,0.002,3477.3,3477.2,1.682]
[1762878820185,0.002,3477.3,3477.2,5.49718119]
[1762878820386,0.002,3477.3,3477.2,5.90268519]
[1762878820629,0.01,3477.9,3477.5,2.87562904]
[1762878820792,0.01,3477.9,3477.5,3.86662904]
[1762878820991,0.01,3477.9,3477.5,4.35012904]
[1762878821186,0.01,3477.9,3477.5,5.58835642]
[1762878822244,0.01,3477.9,3477.8,2.87538098]
[1762878822394,0.01,3477.9,3477.8,4.96188498]
[1762878822745,0.01,3477.9,3477.8,6.57912578]
[1762878822890,0.01,3478.9,3478.8,3.37455444]
[1762878823087,0.01,3478.9,3478.8,5.03905444]
[1762878823291,0.01,3478.9,3478.8,5.06779998]
[1762878823629,0.01,3478.9,3478.8,5.03905444]
[1762878823802,0.01,3478.9,3478.8,5.06779998]
[1762878824004,0.01,3478.9,3478.8,5.8520594]
[1762878824189,0.01,3479.9,3479.8,2.87372837]
[1762878824526,0.01,3479.9,3479.8,4.55572837]
[1762878824733,0.01,3479.9,3479.8,5.06796565]
[1762878825024,0.01,3479.9,3479.8,5.03922837]
[1762878825324,0.01,3479.9,3479.8,5.84878376]
[1762878826115,0.01,3479.9,3479.8,6.25428776]
[1762878826312,0.012,3480.9,3480.4,3.37323296]
[1762878826622,0.012,3480.9,3480.4,4.69003296]
[1762878826853,0.012,3480.9,3480.4,5.57903696]
[1762878826994,0.012,3480.9,3480.4,6.42714863]
[1762878827428,0.012,3480.9,3480.4,1.1268]
[1762878827728,0.012,3480.9,3480.4,1.8168]
[1762878828226,2.88488292,3480.9,3480.4,1.8168]
[1762878828426,0.012,3480.9,3480.4,1.3258]
[1762878828723,0.012,3480.9,3480.4,1.681]
[1762878828926,0.012,3480.9,3480.4,2.1645]
[1762878829113,0.012,3480.9,3480.4,5.27294296]
[1762878829497,0.012,3480.9,3480.4,2.39971]
[1762878829930,0.012,3480.9,3480.4,1.91621]
[1762878830441,0.012,3480.9,3480.4,1.42521]
[1762878831094,2.88484135,3480.9,3480.4,1.42521]
[1762878831324,2.87298861,3480.7,3480.4,1.189]
[1762878831723,2.87292897,3480.8,3480.4,1.189]
[1762878831896,0.012,3480.9,3480.4,0.5]
[1762878832098,3.7857504,3480.5,3480.4,0.5]
[1762878832310,0.9126,3480.5,3480.4,1.189]
[1762878832511,0.002,3480.5,3480.4,0.689]
[1762878832796,2.8751504,3480.5,3480.4,1.189]
[1762878833123,0.002,3480.5,3480.4,1.189]
[1762878833360,0.002,3480.5,3480.4,4.06223296]
[1762878833550,0.002,3480.5,3480.4,4.97265626]
[1762878833746,0.002,3480.5,3480.4,5.45615626]
[1762878835988,0.002,3480.5,3480.4,2.0994233]
[1762878836159,0.002,3480.5,3480.4,4.97265626]
[1762878836560,0.002,3480.5,3480.4,0.9194233]
[1762878836761,2.8751504,3480.5,3480.4,1.188]
[1762878837379,3.3144504,3480.5,3480.4,1.188]
[1762878837784,0.002,3480.5,3480.4,1.188]
[1762878838571,0.002,3480.5,3480.4,4.54213296]
[1762878838867,0.002,3480.5,3480.4,5.34324492]
[1762878839072,0.002,3480.5,3480.4,5.80194492]
[1762878840269,0.0012,3480.5,3480.4,5.80194492]
[1762878840900,0.0012,3480.5,3480.4,6.20744892]
[1762878841985,0.0012,3480.5,3480.4,5.80194492]
[1762878842187,0.0012,3480.5,3480.4,4.65524492]
[1762878842502,0.0012,3480.5,3480.4,0.5]
[1762878842663,0.4553,3480.5,3480.4,1.188]
[1762878842868,0.0012,3480.5,3480.4,1.188]
[1762878843499,3.3554504,3480.5,3480.4,1.188]
[1762878843769,0.9063,3480.5,3480.0,0.5]
[1762878844078,0.9063,3480.5,3480.1,0.688]
[1762878844079,2.87339808,3480.2,3480.1,0.688]
[1762878844607,3.77819808,3480.2,3480.1,0.688]
[1762878844818,3.77819808,3480.2,3478.5,2.87475664]
[1762878844819,0.9048,3480.2,3478.5,2.87475664]
[1762878844981,2.874091,3479.4,3479.0,0.5]
[1762878845299,0.4507,3480.1,3479.7,0.5]
[1762878845472,0.1797,3479.9,3479.8,0.688]
[1762878845864,2.87339579,3480.3,3480.1,0.5]
[1762878846070,4.00713659,3480.3,3480.2,0.688]
[1762878846268,0.4576,3480.3,3480.2,0.688]
[1762878846680,2.87438162,3480.5,3480.2,0.688]
[1762878846970,4.45882242,3480.5,3480.4,0.5]
[1762878847370,4.91642242,3480.5,3480.4,0.5]
[1762878848384,4.91642242,3480.5,3480.2,0.688]
[1762878848385,0.4588,3480.5,3480.2,0.688]
[1762878848612,2.87323296,3480.4,3480.3,0.5]
[1762878848807,3.33198038,3480.5,3480.3,0.5]
[1762878848989,3.33198038,3480.5,3480.2,0.688]
[1762878848990,2.0420408,3480.4,3480.2,0.688]
[1762878849308,1.5913408,3480.4,3480.3,0.5]
[1762878849505,1.1337408,3480.4,3480.3,0.5]
[1762878849697,0.0012,3480.5,3480.4,0.5]
[1762878850707,0.0012,3480.5,3480.4,4.7387445]
[1762878850913,0.0012,3480.5,3480.4,4.31283296]
[1762878851808,0.0012,3480.5,3480.4,1.4396]
[1762878852036,0.0012,3480.5,3480.4,4.31283296]
[1762878852887,0.0012,3480.5,3480.4,3.85413296]
[1762878853111,0.0012,3480.5,3480.4,5.12002907]
[1762878854701,0.012,3480.9,3480.8,5.39304758]
[1762878854702,1e-08,3480.9,3480.8,5.39304758]
[1762878854905,1e-08,3480.9,3480.8,6.08104758]
[1762878855104,1e-08,3480.9,3480.8,8.38746262]
[1762878855420,0.01,3481.9,3481.3,0.405504]
[1762878855632,0.01,3481.9,3481.8,4.98671846]
[1762878855859,0.01,3481.9,3481.8,5.67471846]
[1762878856020,0.01,3481.9,3481.8,6.53892246]
[1762878856219,0.01,3481.9,3481.8,21.57867044]
[1762878856220,1e-08,3481.9,3481.8,21.57867044]
[1762878856421,0.002,3482.1,3481.8,21.57867044]
[1762878856422,0.002,3482.8,3482.4,4.00532361]
[1762878856737,0.002,3482.8,3482.4,6.32052361]
[1762878859055,0.002,3482.8,3482.7,2.87133545]
[1762878859210,0.002,3482.8,3482.7,3.8809488]
[1762878859407,0.002,3482.8,3482.7,5.56068613]
[1762878860266,0.002,3482.8,3482.7,13.29118544]
[1762878860471,0.012,3483.9,3483.1,4.91025051]
[1762878860759,0.012,3483.9,3483.5,5.39082084]
[1762878860938,0.012,3483.9,3483.5,10.65651434]
[1762878861110,0.012,3483.9,3483.5,17.06293634]
[1762878861311,1e-08,3483.9,3483.8,3.75683284]
[1762878861568,0.002,3484.2,3484.1,4.90942648]
[1762878861856,0.002,3484.2,3484.1,5.48672648]
[1762878862009,0.002,3484.2,3484.1,9.32213089]
[1762878862211,0.002,3484.2,3484.1,5.08122248]
[1762878862454,0.002,3484.2,3484.1,5.19192248]
[1762878862947,0.002,3484.2,3484.1,2.3217408]
[1762878863113,0.002,3484.2,3484.1,5.19192248]
[1762878863457,0.002,3484.2,3484.1,1.188]
[1762878864154,0.4372,3484.2,3484.1,0.5]
[1762878864308,0.4372,3484.2,3484.1,1.188]
[1762878864309,3.7578993,3484.2,3484.1,1.188]
[1762878864517,3.7578993,3484.2,3483.7,0.5]
[1762878864518,0.8878,3484.2,3483.7,0.5]
[1762878864744,0.4506,3484.1,3482.6,2.87138743]
[1762878864948,2.87042884,3483.8,3483.7,0.5]
[1762878865119,0.4506,3484.1,3482.5,2.87143089]
[1762878865120,2.87034645,3483.9,3482.5,2.87143089]
[1762878865319,2.87034645,3483.9,3482.1,0.4687]
[1762878865320,0.4811,3482.6,3482.2,2.87170934]
[1762878865523,0.4811,3482.6,3482.1,0.01]
[1762878865524,0.4811,3482.6,3482.5,0.5]
[1762878865845,0.4811,3482.6,3482.3,0.688]
[1762878865846,2.87114066,3483.0,3482.9,0.5]
[1762878866050,0.9288,3483.0,3482.9,1.188]
[1762878866207,0.4807,3483.0,3482.9,1.188]
[1762878866408,3.79988814,3483.0,3482.9,0.5]
[1762878866632,0.9288,3483.0,3482.9,1.188]
[1762878866846,0.4481,3483.5,3483.4,0.5]
[1762878867044,0.4481,3483.5,3483.4,1.188]
[1762878867252,0.4804,3483.5,3483.4,0.688]
[1762878867456,0.4804,3483.5,3483.4,1.188]
[1762878867640,0.9288,3483.5,3483.4,1.188]
[1762878867841,0.9288,3483.5,3479.3,2.26677425]
[1762878867842,3.79947604,3483.5,3481.8,0.885804]
[1762878868015,2.87087618,3483.3,3483.2,0.5]
[1762878868217,2.87087618,3483.3,3483.2,1.188]
[1762878868413,0.1954,3483.7,3483.2,1.188]
[1762878868616,0.1954,3483.7,3483.6,0.5]
[1762878868617,3.54477801,3483.7,3483.6,0.5]
[1762878868818,1.1242,3483.7,3483.6,0.5]
[1762878869142,3.99471123,3483.7,3483.6,0.5]
[1762878870121,1.1242,3483.7,3483.6,0.5]
[1762878870316,3.99471123,3483.7,3483.6,0.5]
[1762878871055,2.87065869,3483.6,3483.5,0.5]
[1762878871354,2.87065869,3483.6,3483.2,0.688]
[1762878871355,2.87075845,3483.4,3483.3,0.5]
[1762878871952,3.79955845,3483.4,3483.3,0.5]
[1762878872471,0.1954,3483.7,3483.6,0.5]
[1762878872621,3.35115007,3483.9,3483.8,0.5]
[1762878872828,0.6869,3483.9,3483.8,1.188]
[1762878873158,0.002,3483.9,3483.8,1.188]
[1762878874773,0.002,3483.9,3483.8,1.59673643]
[1762878874935,0.002,3483.9,3483.8,1.188]
[1762878876271,0.002,3483.9,3483.8,2.1657]
[1762878876702,0.002,3483.9,3483.8,5.03612884]
[1762878876838,0.002,3483.9,3483.8,5.06483312]
[1762878877178,0.002,3483.9,3483.8,5.03612884]
[1762878877380,0.002,3483.9,3483.8,5.82679954]
[1762878877738,0.002,3483.9,3483.8,2.9563707]
[1762878877952,0.002,3483.9,3483.8,5.03612884]
[1762878880665,0.002,3483.9,3483.8,6.16986964]
[1762878881656,0.0012,3484.2,3484.1,4.40942648]
[1762878881869,0.002,3484.3,3484.2,4.4093441]
[1762878882093,0.002,3484.6,3484.2,4.4093441]
[1762878882094,0.002,3484.6,3484.5,4.909097]
[1762878882293,0.002,3484.6,3484.5,7.79318121]
[1762878882502,0.002,3484.6,3484.5,8.25548121]
[1762878884396,0.012,3484.9,3484.8,4.40884994]
[1762878884562,0.012,3484.9,3484.8,6.09224994]
[1762878884762,0.012,3484.9,3484.8,6.55454994]
[1762878885064,1e-08,3484.9,3484.8,8.68118901]
[1762878885257,0.01,3485.9,3485.8,3.36878191]
[1762878885462,0.01,3485.9,3485.8,4.55218191]
[1762878885685,0.01,3485.9,3485.8,5.76647746]
[1762878886794,0.01,3485.9,3485.8,1.25199555]
[1762878887001,0.01,3485.9,3485.8,4.05578191]
[1762878887159,0.01,3485.9,3485.8,5.01448191]
[1762878887590,0.01,3485.9,3485.8,4.55218191]
[1762878887790,0.01,3485.9,3485.8,1.187]
[1762878888166,1.1076,3485.9,3485.2,2.86927579]
[1762878888368,1.1076,3485.9,3484.7,0.1929]
[1762878888369,0.0092,3485.9,3485.8,0.5]
[1762878888690,0.0092,3485.9,3485.8,1.187]
[1762878888894,0.6832,3485.9,3485.8,1.187]
[1762878889112,3.97629961,3485.9,3485.8,1.187]
[1762878889257,2.86878191,3485.8,3485.6,0.5]
[1762878889456,2.86886421,3485.7,3485.6,0.5]
[1762878889715,3.36986421,3485.7,3485.6,0.687]
[1762878889874,2.86894652,3485.6,3485.5,0.5]
[1762878890081,2.86902883,3485.5,3483.8,0.4633]
[1762878890328,0.0083,3484.8,3484.7,0.5]
[1762878890537,0.4968,3485.4,3484.7,0.687]
[1762878890679,6.77670876,3485.9,3484.7,0.687]
[1762878890680,0.1921,3485.9,3485.5,0.5]
[1762878891027,4.00260501,3485.7,3485.6,0.687]
[1762878891378,4.91810501,3485.7,3485.6,0.687]
[1762878891722,4.91810501,3485.7,3485.6,1.187]
[1762878891896,4.91810501,3485.7,3485.6,0.687]
[1762878894224,2.0492408,3485.7,3484.4,2.86988666]
[1762878894527,2.86919346,3485.3,3485.2,0.5]
[1762878895020,2.86919346,3485.3,3485.2,1.187]
[1762878895021,3.37099346,3485.3,3485.2,1.187]
[1762878895209,3.36899346,3485.3,3485.2,1.187]
[1762878895410,2.86910378,3485.5,3485.2,1.187]
[1762878895594,2.86910378,3485.5,3485.4,0.5]
[1762878896220,3.28780378,3485.5,3485.4,0.5]
[1762878896610,0.4187,3485.5,3485.4,0.5]
[1762878896808,3.28772883,3485.5,3485.4,0.5]
[1762878897822,0.4187,3485.5,3485.4,0.5]
[1762878897996,3.28772883,3485.5,3485.4,0.5]
[1762878898392,3.06087467,3485.9,3485.6,0.5]
[1762878898709,3.06087467,3485.9,3484.6,3.36855143]
[1762878898710,3.35778191,3485.8,3485.7,0.687]
[1762878898910,2.86914764,3485.4,3485.3,0.5]
[1762878899104,0.4799,3485.7,3485.4,0.5]
[1762878899404,2.86902883,3485.5,3485.4,0.5]
[1762878899715,3.30452883,3485.5,3485.4,0.5]
[1762878899916,3.78392883,3485.5,3485.4,0.5]
[1762878900111,0.9149,3485.5,3485.4,0.5]
[1762878900530,3.78392883,3485.5,3485.4,0.5]
[1762878900739,2.86911114,3485.4,3484.8,2.86959654]
[1762878901033,3.52832279,3484.9,3484.8,0.5]
[1762878901205,3.96772279,3484.9,3484.8,1.187]
[1762878901544,1.0982,3484.9,3484.8,0.687]
[1762878901749,0.4645,3484.9,3484.8,1.187]
[1762878902043,2.86952279,3484.9,3484.8,1.187]
[1762878902191,3.33092279,3484.9,3484.8,1.187]
[1762878902594,3.33092279,3484.9,3483.8,0.001]
[1762878902595,2.86976984,3484.6,3484.5,0.5]
[1762878902861,2.86976984,3484.6,3483.8,0.001]
[1762878902862,0.6141,3483.9,3483.8,0.001]
[1762878903017,10.06905521,3483.9,3483.8,0.688]
[1762878903338,10.54895521,3483.9,3483.8,0.001]
[1762878904219,11.95028463,3483.9,3483.8,0.001]
[1762878904649,12.35578863,3483.9,3483.8,0.001]
[1762878906168,11.95028463,3483.9,3483.8,0.001]
[1762878906348,11.68269601,3483.9,3483.8,0.001]
[1762878908820,0.1943,3484.2,3483.8,0.001]
[1762878909153,2.87019128,3484.1,3483.8,0.501]
[1762878909320,2.87018168,3484.1,3483.8,0.501]
[1762878909520,0.6742,3484.2,3483.8,0.501]
[1762878909752,0.6742,3484.2,3483.8,0.001]
[1762878909958,3.54435252,3484.2,3483.9,0.5]
[1762878910253,3.54435252,3484.2,3483.8,0.001]
[1762878910254,0.1943,3484.2,3484.0,0.5]
[1762878910563,3.0644263,3484.2,3483.9,1.187]
[1762878910770,3.06440625,3484.2,3483.9,1.187]
[1762878910935,2.87034645,3483.9,3483.8,0.001]
[1762878911261,2.87474645,3483.9,3483.8,0.688]
[1762878911568,6.58460876,3484.1,3483.9,0.5]
[1762878911723,0.4225,3484.0,3483.9,0.5]
[1762878911926,6.58460876,3484.1,3483.9,0.5]
[1762878912353,4.00377714,3484.3,3483.9,0.5]
[1762878912658,2.87010715,3484.2,3483.9,0.5]
[1762878912866,4.00376201,3484.3,3483.9,0.5]
[1762878913039,2.86965875,3484.8,3484.4,0.5]
[1762878913354,0.4799,3485.0,3484.5,0.687]
[1762878913355,0.6742,3484.9,3484.5,0.687]
[1762878913736,0.1943,3484.9,3484.5,0.687]
[1762878914055,3.29226984,3484.6,3484.5,0.687]
[1762878914535,0.1943,3485.0,3484.5,0.687]
[1762878914719,2.86958663,3484.9,3484.6,0.5]
[1762878914920,2.86952095,3485.0,3484.5,0.687]
[1762878915149,2.86941301,3485.1,3484.5,3.55679888]
[1762878915350,4.00315381,3485.1,3485.0,0.5]
[1762878915754,2.86950987,3485.0,3484.9,0.5]
[1762878916274,4.00312566,3485.1,3484.9,0.5]
[1762878916432,4.00310406,3485.1,3484.9,0.5]
[1762878917160,2.86944045,3485.0,3484.9,0.5]
[1762878917357,4.00313116,3485.1,3484.9,0.5]
[1762878917676,1.02760449,3486.7,3484.9,0.5]
[1762878917677,0.4799,3486.0,3485.6,0.5]
[1762878917820,0.0112,3485.9,3485.7,0.5]
[1762878918375,0.2055,3485.9,3485.7,0.5]
[1762878918519,0.2055,3485.9,3485.2,0.4841]
[1762878918520,0.8904,3485.8,3485.4,0.5]
[1762878918727,0.2055,3485.9,3485.7,0.5]
[1762878918958,0.0112,3485.9,3485.8,0.687]
[1762878919260,0.2055,3485.9,3485.8,0.687]
[1762878919423,3.48539961,3485.9,3485.8,0.687]
[1762878919783,2.86885992,3485.8,3484.3,3.33084695]
[1762878919981,2.86885992,3485.8,3485.2,0.5]
[1762878919982,2.86902724,3485.6,3485.2,0.5]
[1762878920303,2.86911114,3485.4,3485.3,0.687]
[1762878920598,3.28031114,3485.4,3485.3,0.687]
[1762878920951,3.75951114,3485.4,3485.3,0.687]
[1762878921350,0.8904,3485.4,3485.3,0.687]
[1762878921551,3.75951114,3485.4,3485.3,0.687]
[1762878921847,0.8904,3485.4,3484.8,0.5]
[1762878922081,2.86949281,3485.0,3484.9,0.687]
[1762878922581,3.81389281,3485.0,3484.9,0.687]
[1762878922785,2.0781408,3485.0,3484.6,0.687]
[1762878922986,0.4765,3484.9,3484.6,0.687]
[1762878923386,1.1337408,3485.0,3484.7,0.5]
[1762878923551,2.86960514,3484.8,3484.7,0.5]
[1762878923899,1.1337408,3485.0,3484.6,0.687]
[1762878924051,1.1337408,3485.0,3484.7,0.5]
[1762878924249,4.00320861,3485.0,3484.6,0.687]
[1762878924467,2.86952279,3484.9,3484.8,0.5]
[1762878925062,4.00322106,3485.0,3484.9,0.5]
[1762878925671,1.5982408,3485.0,3484.8,0.5]
[1762878926080,2.86960964,3484.8,3484.6,1.187]
[1762878926252,3.29558749,3484.7,3484.6,0.687]
[1762878926454,0.4259,3484.7,3484.2,0.5]
[1762878926784,0.4259,3484.7,3483.8,0.001]
[1762878926785,0.4663,3484.6,3483.8,0.001]
[1762878926971,0.4663,3484.6,3483.9,0.687]
[1762878927176,2.87014252,3484.2,3483.9,0.687]
[1762878927386,2.87023455,3484.1,3483.9,0.687]
[1762878927586,3.33616053,3484.5,3483.9,0.687]
[1762878927800,3.30036406,3484.0,3483.9,0.687]
[1762878927954,0.4301,3484.0,3483.9,0.687]
[1762878928288,3.30036406,3484.0,3483.9,0.687]
[1762878928585,0.4301,3484.0,3483.9,0.687]
[1762878928791,2.87021785,3484.1,3483.9,0.687]
[1762878929011,2.87034645,3483.9,3483.8,0.001]
[1762878929211,4.19758725,3483.9,3483.8,0.001]
[1762878929351,11.24849601,3483.9,3483.8,0.001]
[1762878929700,11.92157475,3483.9,3483.8,0.001]
[1762878931313,1.40601554,3483.9,3483.8,0.001]
[1762878931456,7.1025442,3484.6,3483.8,0.001]
[1762878931457,2.87027161,3484.0,3483.8,0.001]
[1762878931661,1.6000408,3484.5,3483.8,0.001]
[1762878931968,1.6000408,3484.5,3483.9,0.687]
[1762878932170,2.87026853,3484.0,3483.9,0.687]
[1762878932500,3.30586406,3484.0,3483.9,0.687]
[1762878932806,0.466,3484.4,3483.9,0.687]
[1762878932957,2.87008005,3484.3,3484.0,0.5]
[1762878933359,6.2992,3484.6,3483.9,1.187]
[1762878933360,2.8701026,3484.2,3483.9,1.187]
[1762878933694,1.6000408,3484.5,3483.9,1.187]
[1762878933897,2.86993456,3484.4,3484.3,0.5]
[1762878934083,2.86993456,3484.4,3484.2,0.5]
[1762878934269,3.33624655,3484.4,3483.9,1.187]
[1762878934606,2.87018606,3484.1,3483.9,0.687]
[1762878934813,2.87026406,3484.0,3483.9,0.687]
[1762878935013,3.35516406,3484.0,3483.9,0.687]
[1762878935215,0.4849,3484.0,3483.9,0.687]
[1762878935433,4.00339103,3484.8,3483.9,0.687]
[1762878935434,1.6000408,3484.7,3484.1,0.5]
[1762878935597,1.6000408,3484.7,3484.0,0.4584]
[1762878935781,2.87000292,3484.4,3484.0,0.5]
[1762878935982,2.86982684,3484.6,3484.1,0.5]
[1762878936216,1.6000408,3484.7,3484.3,0.5]
[1762878936518,0.4663,3484.7,3484.3,0.5]
[1762878936707,1.1337408,3484.7,3484.6,0.5]
[1762878936906,9.1688053,3484.8,3484.6,0.687]
[1762878937109,9.1688053,3484.8,3484.7,0.5]
[1762878937110,7.4329408,3484.8,3484.7,0.5]
[1762878937283,6.2992,3485.6,3484.7,0.9584]
[1762878937482,2.86936227,3485.1,3484.8,0.5]
[1762878937721,1.1337408,3485.5,3484.7,0.4584]
[1762878937933,4.00306357,3485.2,3484.9,0.5]
[1762878938221,4.00306357,3485.2,3485.0,0.5]
[1762878938393,2.8695927,3484.9,3484.3,0.33702369]
[1762878938597,2.8695927,3484.9,3484.7,0.687]
[1762878938598,2.86960514,3484.8,3484.7,0.687]
[1762878938781,2.86994529,3484.4,3484.1,0.5]
[1762878938983,2.8698882,3484.5,3484.2,0.687]
[1762878939212,0.1888,3484.8,3484.4,0.5]
[1762878939410,0.405504,3485.4,3484.8,0.5]
[1762878939635,0.26770252,3485.3,3484.8,1.187]
[1762878939815,2.86951436,3485.0,3484.8,0.687]
[1762878939990,2.86931953,3485.2,3484.8,0.687]
[1762878940190,1.1337408,3485.2,3484.8,1.187]
[1762878940414,2.86952279,3484.9,3484.8,0.687]
[1762878940628,3.54322279,3484.9,3484.8,0.687]
[1762878940827,3.95962279,3484.9,3484.8,0.687]
[1762878941550,2.86945945,3485.0,3484.8,0.687]
[1762878941748,2.86927579,3485.2,3484.8,0.687]
[1762878942044,2.86952279,3484.9,3484.8,0.687]
[1762878942411,4.0029349,3485.3,3484.8,1.1454]
[1762878942721,2.86942393,3485.1,3485.0,0.5]
[1762878942926,2.86942393,3485.1,3484.8,0.687]
[1762878943234,1.1337408,3485.3,3484.8,1.187]
[1762878943437,2.86952279,3484.9,3484.8,0.687]
[1762878943838,3.30432279,3484.9,3484.8,0.687]
[1762878945944,3.49312279,3484.9,3484.8,0.687]
[1762878946712,2.86976041,3484.7,3484.1,0.1919]
[1762878946914,1.0896,3484.9,3484.1,0.1919]
[1762878947148,0.4663,3484.8,3484.2,0.686]
[1762878947445,9.16819866,3485.6,3484.4,0.5]
[1762878947626,1.40149398,3485.5,3484.7,0.9584]
[1762878947822,0.26775318,3485.4,3485.1,0.5]
[1762878948023,6.2992,3485.6,3484.8,0.686]
[1762878948024,2.86936951,3485.1,3484.8,0.686]
[1762878948235,1.1337408,3485.5,3484.9,0.5]
[1762878948417,2.8693088,3485.2,3484.9,0.5]
[1762878948618,2.86936964,3485.1,3484.9,0.5]
[1762878949057,6.2992,3485.6,3484.9,0.5]
[1762878949058,2.86928811,3485.2,3484.9,0.5]
[1762878949254,6.2992,3485.6,3484.9,0.5]
[1762878949255,2.86936225,3485.1,3484.9,0.5]
[1762878949625,1.1337408,3485.5,3484.9,0.5]
[1762878949829,2.86919346,3485.3,3485.0,0.5]
[1762878950029,2.86935812,3485.1,3485.0,0.5]
[1762878950266,2.86949905,3485.0,3484.9,0.5]
[1762878950431,2.86944045,3485.0,3484.8,0.686]
[1762878950635,2.86952279,3484.9,3484.8,0.686]
[1762878950870,3.30432279,3484.9,3484.8,0.686]
[1762878951172,3.95912279,3484.9,3484.8,0.686]
[1762878951373,3.95914509,3484.9,3484.3,0.686]
[1762878951534,2.87463456,3484.4,3484.3,0.686]
[1762878951866,2.87026406,3484.0,3483.9,0.001]
[1762878952076,3.61224209,3484.7,3483.9,0.001]
[1762878952374,2.87026406,3484.0,3483.9,0.001]
[1762878953244,0.4663,3484.4,3483.9,0.001]
[1762878953245,1.6000408,3484.4,3483.9,0.001]
[1762878953637,3.30506406,3484.0,3483.9,0.001]
[1762878953778,4.70689075,3484.0,3483.9,0.001]
[1762878953976,5.17289075,3484.0,3483.9,0.001]
[1762878954293,5.57839475,3484.0,3483.9,0.001]
[1762878954492,6.60143895,3484.0,3483.9,0.001]
[1762878954663,7.21906562,3484.0,3483.9,0.001]